fUSD/lending_fUSD_20241219
["ID","MTS","AMOUNT","RATE_DAILY","PERIOD"]
[346001812,1734618667146,-500.0,0.00023561,4]
[346001813,1734618667156,-500.0,0.00023561,4]
[346001814,1734618667166,-672.97,0.00023561,4]
[346001815,1734618667175,-500.0,0.00023561,4]
[346001816,1734618667184,-508.82,0.00023561,4]
[346001817,1734618667193,-658.64,0.00023561,4]
[346001818,1734618667203,-669.94,0.00023561,4]
[346001819,1734618667212,-500.0,0.00023561,4]
[346001820,1734618667221,-500.0,0.00023561,4]
[346001821,1734618667231,-456.77,0.00023561,4]
[346001822,1734618667241,-500.0,0.00023561,4]
[346001823,1734618667250,-500.0,0.00023561,4]
[346001824,1734618667260,-353.23,0.00023561,4]
[346001825,1734618667269,-1051.1,0.00023561,4]
[346001826,1734618667279,-500.0,0.00023561,4]
[346001827,1734618667287,-500.0,0.00023561,4]
[346001828,1734618667297,-49.96354599,0.00023561,4]
[346001829,1734618667509,-593.59645401,0.00023561,4]
[346001830,1734618667519,-500.0,0.00023561,4]
[346001831,1734618667533,-500.0,0.00023561,4]
[346001832,1734618667543,-500.0,0.00023561,4]
[346001833,1734618667552,-500.0,0.00023561,4]
[346001834,1734618667561,-500.0,0.00023561,4]
[346001835,1734618667571,-500.0,0.00023561,4]
[346001836,1734618667580,-500.0,0.00023561,4]
[346001837,1734618667590,-500.0,0.00023561,4]
[346001838,1734618667599,-426.08402344,0.00023561,4]
[346001839,1734618667613,-73.91597656,0.00023561,4]
[346001840,1734618667622,-500.0,0.00023561,4]
[346001841,1734618667631,-40.76939103,0.00023561,4]
[346001842,1734618667643,-459.23060897,0.00023561,4]
[346001843,1734618667652,-24.87939103,0.00023561,4]
[346001844,1734618667663,-475.12060897,0.00023561,4]
[346001845,1734618667675,-188.13439103,0.00023561,4]
[346001846,1734618667688,-351.82560897,0.00023561,4]
[346001847,1734618667701,-264.82688326,0.00023561,4]
[346001848,1734618667713,-235.17311674,0.00023561,4]
[346001849,1734618667722,-545.38,0.00023561,4]
[346001850,1734618667732,-500.0,0.00023561,4]
[346001851,1734618667742,-500.0,0.00023561,4]
[346001852,1734618667751,-500.0,0.00023561,4]
[346001853,1734618667761,-500.0,0.00023561,4]
[346001854,1734618667771,-515.23,0.00023561,4]
[346001855,1734618667781,-500.0,0.00023561,4]
[346001856,1734618667790,-500.0,0.00023561,4]
[346001857,1734618667799,-581.44,0.00023561,4]
[346001858,1734618667809,-500.0,0.00023561,4]
[346001859,1734618667818,-500.0,0.00023561,4]
[346001860,1734618667828,-500.0,0.00023561,4]
[346001861,1734618667837,-500.0,0.00023561,4]
[346001862,1734618667847,-500.0,0.00023561,4]
[346001863,1734618667860,-809.96,0.00023561,4]
[346001864,1734618667869,-982.21,0.00023561,4]
[346001865,1734618667879,-321.68,0.00023561,4]
[346001866,1734618667888,-1225.91,0.00023561,4]
[346001867,1734618667898,-546.89,0.00023561,4]
[346001868,1734618667907,-500.0,0.00023561,4]
[346001869,1734618667917,-1862.27,0.00023561,4]
[346001870,1734618667926,-500.0,0.00023561,4]
[346001871,1734618667936,-664.87,0.00023561,4]
[346001872,1734618667946,-500.0,0.00023561,4]
[346001873,1734618667955,-1636.6,0.00023561,4]
[346001874,1734618667964,-500.0,0.00023561,4]
[346001875,1734618667974,-500.0,0.00023561,4]
[346001876,1734618667983,-3443.32,0.00023561,4]
[346001877,1734618667992,-500.0,0.00023561,4]
[346001878,1734618668002,-500.0,0.00023561,4]
[346001879,1734618668012,-577.23,0.00023561,4]
[346001880,1734618668021,-510.18,0.00023561,4]
[346001881,1734618668030,-500.0,0.00023561,4]
[346001882,1734618668039,-500.0,0.00023561,4]
[346001883,1734618668048,-500.0,0.00023561,4]
[346001884,1734618668061,-561.94,0.00023561,4]
[346001885,1734618668070,-500.0,0.00023561,4]
[346001886,1734618668079,-500.0,0.00023561,4]
[346001887,1734618668088,-1000.92,0.00023561,4]
[346001888,1734618668099,-1011.42,0.00023561,4]
[346001889,1734618668110,-1160.85,0.00023561,4]
[346001890,1734618668120,-889.04,0.00023561,4]
[346001891,1734618668131,-575.43392128,0.00023561,4]
[346001892,1734618668141,-513.5,0.00023561,4]
[346001893,1734618668151,-1470.92,0.00023561,4]
[346001894,1734618668160,-1902.12,0.00023561,4]
[346001895,1734618668170,-1529.62,0.00023561,4]
[346001896,1734618668180,-500.0,0.00023561,4]
[346001897,1734618668189,-500.0,0.00023561,4]
[346001898,1734618668199,-500.0,0.00023561,4]
[346001899,1734618668209,-1078.29,0.00023561,4]
[346001900,1734618668219,-500.0,0.00023561,4]
[346001901,1734618668228,-545.41,0.00023561,4]
[346001902,1734618668238,-500.0,0.00023561,4]
[346001903,1734618668247,-1136.86,0.00023561,4]
[346001904,1734618668257,-755.79158169,0.00023561,4]
[346001905,1734618668271,-451.4179437,0.00023561,4]
[346001906,1734618668283,-725.27047461,0.00023561,4]
[346001907,1734618668293,-743.49,0.00023561,4]
[346001908,1734618668303,-743.12,0.00023561,4]
[346001909,1734618668313,-553.43,0.00023561,4]
[346001910,1734618668323,-527.87,0.00023561,4]
[346001911,1734618668333,-2721.41952539,0.00023561,4]
[346001912,1734618668345,-386.13229899,0.00023561,4]
[346001913,1734618668636,-500.0,0.00021917,4]
[346001914,1734618668646,-38.45,0.00021917,4]
[346001915,1734618668658,-461.55,0.00021917,4]
[346001916,1734618668667,-500.0,0.00021917,4]
[346001917,1734618668676,-258.79,0.00022191,4]
[346001918,1734618668685,-212.53054111,0.00022191,4]
[346001919,1734618668697,-287.46945889,0.00022191,4]
[346001920,1734618668707,-1809.69486839,0.00023561,4]
[346001921,1734618668719,-273.63330723,0.00023561,4]
[346001922,1734618668728,-500.0,0.00023561,4]
[346001923,1734618668738,-500.0,0.00023561,4]
[346001924,1734618668747,-500.0,0.00023561,4]
[346001925,1734618668757,-966.08,0.00023561,4]
[346001926,1734618668766,-315.82902183,0.00023561,4]
[346001927,1734618669020,-508.27,0.00021917,4]
[346001928,1734618669030,-500.0,0.00021917,4]
[346001929,1734618669039,-500.0,0.00022191,4]
[346001930,1734618669049,-497.19,0.00022917,2]
[346001931,1734618669059,-500.0,0.00023314,2]
[346001932,1734618669069,-184.17097817,0.00023561,4]
[346001933,1734618669081,-500.0,0.00023561,4]
[346001934,1734618669091,-803.62,0.00023561,4]
[346001935,1734618669103,-598.14,0.00023561,4]
[346001936,1734618669113,-716.0,0.00023561,4]
[346001937,1734618669123,-500.0,0.00023561,4]
[346001938,1734618669132,-947.99,0.00023561,4]
[346001939,1734618669142,-501.8,0.00023561,4]
[346001940,1734618669153,-866.06,0.00023561,4]
[346001941,1734618669163,-3302.89,0.00023561,4]
[346001942,1734618669173,-500.0,0.00023561,4]
[346001943,1734618669182,-500.0,0.00023561,4]
[346001944,1734618669192,-500.0,0.00023561,4]
[346001945,1734618669201,-1228.92,0.00023561,4]
[346001946,1734618669211,-601.24,0.00023561,4]
[346001947,1734618669222,-1679.88,0.00023561,4]
[346001948,1734618669231,-550.22,0.00023561,4]
[346001949,1734618669240,-500.0,0.00023561,4]
[346001950,1734618669250,-500.0,0.00023561,4]
[346001951,1734618669259,-500.0,0.00023561,4]
[346001952,1734618669269,-500.0,0.00023561,4]
[346001953,1734618669279,-500.0,0.00023561,4]
[346001954,1734618669289,-500.0,0.00023561,4]
[346001955,1734618669298,-500.0,0.00023561,4]
[346001956,1734618669307,-500.0,0.00023561,4]
[346001957,1734618669482,-843.25,0.00023561,4]
[346001958,1734618669495,-1465.52,0.00023561,4]
[346001959,1734618669505,-541.01,0.00023561,4]
[346001960,1734618669516,-780.36,0.00023561,4]
[346001961,1734618669525,-500.0,0.00023561,4]
[346001962,1734618669536,-1550.42759537,0.00023561,4]
[346001963,1734618669550,-346.77240463,0.00023561,4]
[346001964,1734618669559,-500.0,0.00023561,4]
[346001965,1734618669569,-500.0,0.00023561,4]
[346001966,1734618669578,-64.52759537,0.00023561,4]
[346001967,1734618669634,-500.0,0.00023561,4]
[346001968,1734618669680,-194.84240463,0.00023561,4]
[346001969,1734618669690,-1000.0,0.00023561,4]
[346001970,1734618669699,-636.48,0.00023561,4]
[346001971,1734618669709,-682.55495179,0.00023561,4]
[346001972,1734618669720,-680.58504821,0.00023561,4]
[346001973,1734618669729,-500.0,0.00023561,4]
[346001974,1734618669739,-2028.95,0.00023561,4]
[346001975,1734618669747,-166.71717326,0.00023561,4]
[346001976,1734618669767,-669.22282674,0.00023561,4]
[346001977,1734618669776,-500.0,0.00023561,4]
[346001978,1734618669785,-500.0,0.00023561,4]
[346001979,1734618669795,-500.0,0.00023561,4]
[346001980,1734618669804,-126.31044866,0.00023561,4]
[346001981,1734618669814,-1113.70970627,0.00023561,4]
[346001982,1734619051924,186.2,0.00010137,2]
[346001983,1734619052121,186.2,0.00016813,2]
[346002036,1734619831992,-668.89,0.00019323,2]
[346002037,1734619832002,-816.82132559,0.000198,2]
[346002038,1734619832012,-1483.6094,0.000199,2]
[346002039,1734619832025,-1000.0,0.0002023,2]
[346002040,1734619832035,-359.39,0.00020275,2]
[346002041,1734619832044,-168.75,0.00020308,2]
[346002042,1734619832053,-406.67,0.00020329,2]
[346002043,1734619832062,-200.0,0.00020377,2]
[346002044,1734619832072,-1500.0,0.00020387,2]
[346002045,1734619832081,-250.0,0.00020434,2]
[346002046,1734619832091,-10.71069339,0.00020477,2]
[346002047,1734619832103,-189.28930661,0.00020477,2]
[346002048,1734619832112,-150.0,0.00020712,2]
[346002049,1734619832121,-153.53,0.00020717,2]
[346002050,1734619832131,-153.53,0.00020743,2]
[346002051,1734619832140,-153.53,0.00020769,2]
[346002052,1734619832149,-153.53,0.00020794,2]
[346002053,1734619832159,-153.53,0.0002082,2]
[346002054,1734619832168,-250.0,0.00020861,2]
[346002055,1734619832177,-167.34,0.00020861,2]
[346002056,1734619832186,-305.72069339,0.00020975,2]
[346002057,1734619832198,-318.61930661,0.00020975,2]
[346002058,1734619832208,-164.42,0.00021003,2]
[346002059,1734619832217,-23.56069339,0.0002101,2]
[346002060,1734619832229,-276.43930661,0.0002101,2]
[346002061,1734619832239,-2614.69,0.00021011,2]
[346002062,1734619832249,-413.17,0.00021056,2]
[346002063,1734619832258,-250.0,0.00021113,2]
[346002064,1734619832267,-500.0,0.00021164,2]
[346002065,1734619832279,-500.0,0.00021164,2]
[346002066,1734619832289,-300.0,0.00021215,2]
[346002067,1734619832298,-23900.0,0.00021254,2]
[346002068,1734619832308,-1539.0,0.00021317,2]
[346002069,1734619832317,-3693.8788948,0.00021416,2]
[346002070,1734619832326,-668.89,0.00021587,2]
[346002072,1734619832336,-167.98,0.00021641,2]
[346002074,1734619832345,-624.34,0.00021751,2]
[346002075,1734619832355,-168.75,0.0002181,2]
[346002078,1734619832366,-1000.0,0.00021816,2]
[346002080,1734619832375,-109970.5761,0.00021817,2]
[346002081,1734619832384,-1000.0,0.00021817,2]
[346002083,1734619832394,-5000.0,0.00021817,2]
[346002085,1734619832404,-185.2674,0.00021817,2]
[346002087,1734619832413,-171.23821872,0.00021817,2]
[346002089,1734619832422,-19822.80890352,0.00021817,2]
[346002091,1734619832433,-500.0,0.000219,7]
[346002093,1734619832446,-158.71,0.00021907,2]
[346002095,1734619832455,-502.20079375,0.00021917,4]
[346002097,1734619832466,-500.0,0.00021917,4]
[346002116,1734619832652,-396.86468692,0.00021917,4]
[346002118,1734619832661,-531.63301534,0.00021917,4]
[346002120,1734619832671,-306.02245268,0.00021917,4]
[346002122,1734619832680,-506.43196932,0.00021917,4]
[346002124,1734619832690,-412.864373,0.00021917,4]
[346002126,1734619832699,-194.309338,0.00021917,4]
[346002128,1734619832709,-500.0,0.00021917,4]
[346002130,1734619832718,-500.0,0.00021917,4]
[346002132,1734619832727,-500.0,0.00021917,4]
[346002134,1734619832737,-399.54676149,0.00021917,4]
[346002136,1734619832747,-500.0,0.00021917,4]
[346002138,1734619832756,-500.0,0.00021917,4]
[346002140,1734619832766,-500.0,0.00021917,4]
[346002142,1734619832779,-500.0,0.00021917,4]
[346002144,1734619832788,-500.0,0.00021917,4]
[346002145,1734619832798,-500.0,0.00021917,4]
[346002146,1734619832807,-500.0,0.00021917,4]
[346002147,1734619832817,-500.0,0.00021917,4]
[346002148,1734619832827,-500.0,0.00021917,4]
[346002149,1734619832837,-500.0,0.00021917,4]
[346002150,1734619832846,-507.11295745,0.00021917,4]
[346002151,1734619832856,-500.0,0.00021917,4]
[346002152,1734619832865,-500.0,0.00021917,4]
[346002153,1734619832875,-500.0,0.00021917,4]
[346002154,1734619832885,-500.0,0.00021917,4]
[346002155,1734619832894,-500.0,0.00021917,4]
[346002156,1734619832903,-500.0,0.00021917,4]
[346002157,1734619832912,-500.0,0.00021917,4]
[346002158,1734619832922,-500.0,0.00021917,4]
[346002159,1734619832934,-500.0,0.00021917,4]
[346002160,1734619832943,-500.0,0.00021917,4]
[346002161,1734619832952,-500.0,0.00021917,4]
[346002162,1734619832962,-500.0,0.00021917,4]
[346002163,1734619832971,-500.0,0.00021917,4]
[346002164,1734619832981,-500.0,0.00021917,4]
[346002165,1734619832990,-500.0,0.00021917,4]
[346002166,1734619832999,-500.0,0.00021917,4]
[346002167,1734619833008,-500.0,0.00021917,4]
[346002168,1734619833019,-500.0,0.00021917,4]
[346002169,1734619833030,-500.0,0.00021917,4]
[346002170,1734619833039,-500.0,0.00021917,4]
[346002171,1734619833048,-500.0,0.00021917,4]
[346002172,1734619833058,-500.0,0.00021917,4]
[346002173,1734619833068,-500.0,0.00021917,4]
[346002174,1734619833077,-500.0,0.00021917,4]
[346002175,1734619833087,-500.0,0.00021917,4]
[346002176,1734619833097,-500.0,0.00021917,4]
[346002177,1734619833108,-500.0,0.00021917,4]
[346002178,1734619833118,-500.0,0.00021917,4]
[346002179,1734619833128,-500.0,0.00021917,4]
[346002180,1734619833139,-500.0,0.00021917,4]
[346002181,1734619833149,-500.0,0.00021917,4]
[346002182,1734619833159,-500.0,0.00021917,4]
[346002183,1734619833169,-500.0,0.00021917,4]
[346002184,1734619833179,-500.0,0.00021917,4]
[346002185,1734619833189,-500.0,0.00021917,4]
[346002186,1734619833199,-500.0,0.00021917,4]
[346002187,1734619833209,-500.0,0.00021917,4]
[346002188,1734619833219,-500.0,0.00021917,4]
[346002189,1734619833229,-500.0,0.00021917,4]
[346002190,1734619833239,-500.0,0.00021917,4]
[346002191,1734619833248,-426.82,0.00021917,4]
[346002192,1734619833258,-500.0,0.00021917,4]
[346002193,1734619833267,-630.39961821,0.00021917,4]
[346002194,1734619833281,-500.0,0.00021917,4]
[346002195,1734619833292,-500.0,0.00021917,4]
[346002196,1734619833302,-500.0,0.00021917,4]
[346002197,1734619833313,-500.0,0.00021917,4]
[346002198,1734619833323,-500.0,0.00021917,4]
[346002199,1734619833334,-500.0,0.00021917,4]
[346002200,1734619833344,-500.0,0.00021917,4]
[346002201,1734619833353,-500.0,0.00021917,4]
[346002202,1734619833363,-500.0,0.00021917,4]
[346002203,1734619833373,-500.0,0.00021917,4]
[346002204,1734619833383,-500.0,0.00021917,4]
[346002205,1734619833393,-500.0,0.00021917,4]
[346002206,1734619833403,-500.0,0.00021917,4]
[346002207,1734619833413,-500.0,0.00021917,4]
[346002208,1734619833423,-500.0,0.00021917,4]
[346002209,1734619833435,-568.48,0.00021917,4]
[346002210,1734619833448,-500.0,0.00021917,4]
[346002211,1734619833458,-500.0,0.00021917,4]
[346002212,1734619833468,-500.0,0.00021917,4]
[346002213,1734619833479,-500.0,0.00021917,4]
[346002214,1734619833490,-500.0,0.00021917,4]
[346002215,1734619833500,-500.0,0.00021917,4]
[346002216,1734619833510,-500.0,0.00021917,4]
[346002217,1734619833522,-500.0,0.00021917,4]
[346002218,1734619833531,-642.71,0.00021917,4]
[346002219,1734619833541,-500.0,0.00021917,4]
[346002220,1734619833551,-500.0,0.00021917,4]
[346002221,1734619833561,-498.48271405,0.00021917,4]
[346002222,1734619833780,-1.51728595,0.00021917,4]
[346002223,1734619833790,-533.56,0.00021917,4]
[346002224,1734619833802,-274.73940621,0.00021917,4]
[346002225,1734619833812,-500.0,0.00021917,4]
[346002226,1734619833821,-500.0,0.00021917,4]
[346002227,1734619833831,-500.0,0.00021917,4]
[346002228,1734619833841,-500.0,0.00021917,4]
[346002229,1734619833851,-500.0,0.00021917,4]
[346002230,1734619833860,-722.07,0.00021917,4]
[346002231,1734619833871,-500.0,0.00021917,4]
[346002232,1734619833880,-500.0,0.00021917,4]
[346002233,1734619833888,-500.0,0.00021917,4]
[346002234,1734619833899,-500.0,0.00021917,4]
[346002235,1734619833909,-500.0,0.00021917,4]
[346002236,1734619833920,-500.0,0.00021917,4]
[346002237,1734619833931,-508.2,0.00021917,4]
[346002238,1734619833941,-500.0,0.00021917,4]
[346002239,1734619833952,-500.0,0.00021917,4]
[346002240,1734619833962,-500.0,0.00021917,4]
[346002241,1734619833973,-500.0,0.00021917,4]
[346002242,1734619833984,-500.0,0.00021917,4]
[346002243,1734619833995,-500.0,0.00021917,4]
[346002244,1734619834006,-500.0,0.00021917,4]
[346002245,1734619834016,-500.0,0.00021917,4]
[346002246,1734619834032,-500.0,0.00021917,4]
[346002247,1734619834043,-500.0,0.00021917,4]
[346002248,1734619834053,-744.53,0.00021917,4]
[346002249,1734619834063,-500.0,0.00021917,4]
[346002250,1734619834074,-500.0,0.00021917,4]
[346002251,1734619834084,-500.0,0.00021917,4]
[346002252,1734619834095,-500.0,0.00021917,4]
[346002253,1734619834105,-500.0,0.00021917,4]
[346002254,1734619834115,-500.0,0.00021917,4]
[346002255,1734619834125,-500.0,0.00021917,4]
[346002256,1734619834135,-500.0,0.00021917,4]
[346002257,1734619834146,-500.0,0.00021917,4]
[346002258,1734619834156,-500.0,0.00021917,4]
[346002259,1734619834167,-500.0,0.00021917,4]
[346002260,1734619834178,-500.0,0.00021917,4]
[346002261,1734619834188,-295.99,0.00021917,4]
[346002262,1734619834198,-500.0,0.00021917,4]
[346002263,1734619834208,-500.0,0.00021917,4]
[346002264,1734619834218,-500.0,0.00021917,4]
[346002265,1734619834228,-628.7143294,0.00021917,4]
[346002266,1734619834238,-500.0,0.00021917,4]
[346002267,1734619834248,-500.0,0.00021917,4]
[346002268,1734619834259,-500.0,0.00021917,4]
[346002269,1734619834271,-500.0,0.00021917,4]
[346002270,1734619834281,-868.35,0.00021917,4]
[346002271,1734619834291,-500.0,0.00021917,4]
[346002272,1734619834301,-500.0,0.00021917,4]
[346002273,1734619834312,-500.0,0.00021917,4]
[346002274,1734619834323,-500.0,0.00021917,4]
[346002275,1734619834333,-500.0,0.00021917,4]
[346002276,1734619834345,-500.0,0.00021917,4]
[346002277,1734619834357,-500.0,0.00021917,4]
[346002278,1734619834367,-500.0,0.00021917,2]
[346002279,1734619834377,-500.0,0.00021917,4]
[346002280,1734619834387,-500.0,0.00021917,4]
[346002281,1734619834397,-500.0,0.00021917,4]
[346002282,1734619834407,-500.0,0.00021917,4]
[346002283,1734619834417,-500.0,0.00021917,4]
[346002284,1734619834427,-554.96,0.00021917,4]
[346002285,1734619834439,-500.0,0.00021917,4]
[346002286,1734619834453,-500.0,0.00021917,4]
[346002287,1734619834468,-500.0,0.00021917,4]
[346002288,1734619834479,-783.95,0.00021917,4]
[346002289,1734619834490,-500.0,0.00021917,4]
[346002290,1734619834500,-500.0,0.00021917,4]
[346002291,1734619834510,-500.0,0.00021917,4]
[346002292,1734619834527,-500.0,0.00021917,4]
[346002293,1734619834538,-500.0,0.00021917,4]
[346002294,1734619834549,-500.0,0.00021917,4]
[346002295,1734619834559,-527.81,0.00021917,4]
[346002296,1734619834569,-500.0,0.00021917,4]
[346002297,1734619834581,-500.0,0.00021917,4]
[346002298,1734619834591,-500.0,0.00021917,4]
[346002299,1734619834602,-500.0,0.00021917,4]
[346002300,1734619834612,-244.29267118,0.00021917,4]
[346002301,1734619834622,-500.0,0.00021917,4]
[346002302,1734619834633,-500.0,0.00021917,4]
[346002303,1734619834642,-500.0,0.00021917,4]
[346002304,1734619834652,-500.0,0.00021917,4]
[346002305,1734619834661,-500.0,0.00021917,4]
[346002306,1734619834672,-500.0,0.00021917,4]
[346002307,1734619834682,-500.0,0.00021917,4]
[346002308,1734619834692,-500.0,0.00021917,4]
[346002309,1734619834701,-500.0,0.00021917,4]
[346002310,1734619834711,-500.0,0.00021917,4]
[346002311,1734619834720,-500.0,0.00021917,4]
[346002312,1734619834730,-500.0,0.00021917,4]
[346002313,1734619834740,-500.0,0.00021917,4]
[346002314,1734619834750,-500.0,0.00021917,4]
[346002315,1734619834759,-500.0,0.00021917,4]
[346002316,1734619834772,-500.0,0.00021917,4]
[346002317,1734619834782,-500.0,0.00021917,4]
[346002318,1734619834792,-500.0,0.00021917,4]
[346002319,1734619834803,-687.78,0.00021917,4]
[346002320,1734619834812,-500.0,0.00021917,4]
[346002321,1734619834822,-500.0,0.00021917,4]
[346002322,1734619834832,-500.0,0.00021917,4]
[346002323,1734619834841,-500.0,0.00021917,4]
[346002324,1734619834851,-500.0,0.00021917,4]
[346002325,1734619834860,-500.0,0.00021917,4]
[346002326,1734619834870,-500.0,0.00021917,4]
[346002327,1734619834880,-500.0,0.00021917,4]
[346002328,1734619834890,-500.0,0.00021917,4]
[346002329,1734619834900,-500.0,0.00021917,4]
[346002330,1734619834910,-500.0,0.00021917,4]
[346002331,1734619834920,-500.0,0.00021917,4]
[346002332,1734619834929,-500.0,0.00021917,4]
[346002333,1734619834939,-508.40680388,0.00021917,4]
[346002334,1734619834948,-428.08958377,0.00021917,4]
[346002335,1734619834958,-500.0,0.00021917,4]
[346002336,1734619834967,-500.0,0.00021917,4]
[346002337,1734619834977,-500.0,0.00021917,4]
[346002338,1734619834986,-500.0,0.00021917,4]
[346002339,1734619834997,-500.0,0.00021917,4]
[346002340,1734619835007,-500.0,0.00021917,4]
[346002341,1734619835017,-500.0,0.00021917,4]
[346002342,1734619835029,-500.0,0.00021917,4]
[346002343,1734619835039,-743.16,0.00021917,4]
[346002344,1734619835048,-533.38,0.00021917,4]
[346002345,1734619835058,-500.0,0.00021917,4]
[346002346,1734619835067,-500.0,0.00021917,4]
[346002347,1734619835077,-500.0,0.00021917,4]
[346002348,1734619835086,-500.0,0.00021917,4]
[346002349,1734619835137,-500.0,0.00021917,4]
[346002350,1734619835146,-1319.11,0.00021917,4]
[346002351,1734619835156,-500.0,0.00021917,4]
[346002352,1734619835165,-500.0,0.00021917,4]
[346002353,1734619835174,-500.0,0.00021917,4]
[346002354,1734619835183,-500.0,0.00021917,4]
[346002355,1734619835193,-500.0,0.00021917,4]
[346002356,1734619835203,-500.0,0.00021917,4]
[346002357,1734619835212,-500.0,0.00021917,4]
[346002358,1734619835222,-1159.25,0.00021917,4]
[346002359,1734619835232,-500.0,0.00021917,4]
[346002360,1734619835242,-343.69449796,0.00021917,4]
[346002361,1734619835252,-1355.2,0.00021917,4]
[346002362,1734619835262,-500.0,0.00021917,4]
[346002363,1734619835277,-500.0,0.00021917,4]
[346002364,1734619835287,-500.0,0.00021917,4]
[346002365,1734619835300,-2439.02,0.00021917,4]
[346002366,1734619835310,-500.0,0.00021917,4]
[346002367,1734619835320,-1110.6,0.00021917,4]
[346002368,1734619835329,-500.0,0.00021917,4]
[346002369,1734619835339,-500.0,0.00021917,4]
[346002370,1734619835349,-500.0,0.00021917,4]
[346002371,1734619835358,-500.0,0.00021917,4]
[346002372,1734619835368,-500.0,0.00021917,4]
[346002373,1734619835378,-620.85,0.00021917,4]
[346002374,1734619835388,-500.0,0.00021917,4]
[346002375,1734619835397,-781.0,0.00021917,4]
[346002376,1734619835408,-500.0,0.00021917,4]
[346002377,1734619835417,-941.86,0.00021917,4]
[346002378,1734619835427,-857.05,0.00021917,4]
[346002379,1734619835438,-500.0,0.00021917,4]
[346002380,1734619835449,-500.0,0.00021917,4]
[346002381,1734619835459,-498.99002,0.00021917,4]
[346002382,1734619835469,-500.0,0.00021917,4]
[346002383,1734619835479,-500.0,0.00021917,4]
[346002384,1734619835488,-749.03,0.00021917,4]
[346002385,1734619835497,-500.0,0.00021917,4]
[346002386,1734619835507,-247.3292645,0.00021917,4]
[346002387,1734619835517,-524.11398903,0.00021917,4]
[346002388,1734619835534,-500.0,0.00021917,4]
[346002389,1734619835543,-500.0,0.00021917,4]
[346002390,1734619835553,-254.25630616,0.00021917,4]
[346002391,1734619835563,-500.0,0.00021917,4]
[346002392,1734619835572,-1379.54,0.00021917,4]
[346002393,1734619835582,-582.13,0.00021917,4]
[346002394,1734619835592,-500.0,0.00021917,4]
[346002395,1734619835602,-664.17,0.00021917,4]
[346002396,1734619835613,-500.0,0.00021917,4]
[346002397,1734619835622,-433.06114688,0.00021917,4]
[346002398,1734619835632,-1288.35,0.00021917,4]
[346002399,1734619835642,-500.0,0.00021917,4]
[346002400,1734619835652,-500.0,0.00021917,4]
[346002401,1734619835661,-712.26,0.00021917,4]
[346002402,1734619835671,-500.0,0.00021917,4]
[346002403,1734619835680,-500.0,0.00021917,4]
[346002404,1734619835690,-500.0,0.00021917,4]
[346002405,1734619835699,-500.0,0.00021917,4]
[346002406,1734619835709,-500.0,0.00021917,4]
[346002407,1734619835718,-500.0,0.00021917,4]
[346002408,1734619835728,-500.0,0.00021917,4]